[Event "Vastgota Open 2022"]
[Site "Skara stadshotell, Jarnvagsgatan 5, Skara, Sweden"]
[Date "2022.10.30"]
[Round "7.6"]
[White "Ryefalk, Lucas"]
[Black "Johansson, Ulf"]
[Result "1/2-1/2"]
[TimeControl "30 minutes + 10 seconds per move from move one."]
[WhiteFideId "1769243"]
[BlackFideId "1701380"]
[WhiteElo "1545"]
[BlackElo "2183"]

1. e4 {[%clk 00:30:18]} {[%emt 00:00:03]} g6 {[%clk 00:30:15]} {[%emt
00:00:03]} 2. d4 {[%clk 00:30:20]} {[%emt 00:00:08]} Bg7 {[%clk 00:30:22]}
{[%emt 00:00:03]} 3. Nc3 {[%clk 00:30:13]} {[%emt 00:00:16]} c6 {[%clk
00:30:13]} {[%emt 00:00:20]} 4. Nf3 {[%clk 00:30:05]} {[%emt 00:00:17]} Nf6
{[%clk 00:28:46]} {[%emt 00:01:38]} 5. Bd3 {[%clk 00:29:41]} {[%emt 00:00:35]}
d6 {[%clk 00:28:28]} {[%emt 00:00:27]} 6. O-O {[%clk 00:29:04]} {[%emt
00:00:47]} O-O {[%clk 00:28:13]} {[%emt 00:00:26]} 7. h3 {[%clk 00:28:35]}
{[%emt 00:00:38]} Qc7 {[%clk 00:27:59]} {[%emt 00:00:24]} 8. Be3 {[%clk
00:27:41]} {[%emt 00:01:04]} Nbd7 {[%clk 00:27:31]} {[%emt 00:00:38]} 9. Qd2
{[%clk 00:27:19]} {[%emt 00:00:33]} Re8 {[%clk 00:27:21]} {[%emt 00:00:19]} 10.
Rad1 {[%clk 00:26:04]} {[%emt 00:01:25]} b5 {[%clk 00:25:52]} {[%emt 00:01:39]}
11. Bh6 {[%clk 00:24:27]} {[%emt 00:01:46]} Bh8 {[%clk 00:25:59]} {[%emt
00:00:03]} 12. Rfe1 {[%clk 00:23:34]} {[%emt 00:01:04]} e5 {[%clk 00:25:11]}
{[%emt 00:00:59]} 13. d5 {[%clk 00:22:10]} {[%emt 00:01:33]} b4 {[%clk
00:25:03]} {[%emt 00:00:17]} 14. Nb1 {[%clk 00:21:04]} {[%emt 00:01:17]} cxd5
{[%clk 00:24:51]} {[%emt 00:00:22]} 15. Qxb4 {[%clk 00:19:11]} {[%emt
00:02:03]} dxe4 {[%clk 00:23:57]} {[%emt 00:01:04]} 16. Bxe4 {[%clk 00:19:11]}
{[%emt 00:00:10]} Nxe4 {[%clk 00:24:04]} {[%emt 00:00:03]} 17. Qxe4 {[%clk
00:19:03]} {[%emt 00:00:18]} Bb7 {[%clk 00:23:31]} {[%emt 00:00:43]} 18. Qb4
{[%clk 00:17:38]} {[%emt 00:01:35]} d5 {[%clk 00:19:17]} {[%emt 00:04:24]} 19.
Nc3 {[%clk 00:16:41]} {[%emt 00:01:07]} d4 {[%clk 00:13:14]} {[%emt 00:06:13]}
20. Nb5 {[%clk 00:14:39]} {[%emt 00:02:12]} Qb6 {[%clk 00:12:54]} {[%emt
00:00:29]} 21. c3 {[%clk 00:13:46]} {[%emt 00:01:03]} a5 {[%clk 00:11:57]}
{[%emt 00:01:08]} 22. Qb3 {[%clk 00:12:06]} {[%emt 00:01:50]} Nc5 {[%clk
00:11:51]} {[%emt 00:00:16]} 23. Qc4 {[%clk 00:12:02]} {[%emt 00:00:14]} Bxf3
{[%clk 00:08:04]} {[%emt 00:03:57]} 24. gxf3 {[%clk 00:11:59]} {[%emt
00:00:13]} Ne6 {[%clk 00:08:03]} {[%emt 00:00:11]} 25. a4 {[%clk 00:10:36]}
{[%emt 00:01:34]} Rac8 {[%clk 00:07:50]} {[%emt 00:00:22]} 26. Qd3 {[%clk
00:09:20]} {[%emt 00:01:26]} Red8 {[%clk 00:06:09]} {[%emt 00:01:51]} 27. cxd4
{[%clk 00:08:53]} {[%emt 00:00:38]} Nxd4 {[%clk 00:04:30]} {[%emt 00:01:48]} 28.
Qe3 {[%clk 00:08:15]} {[%emt 00:00:48]} Qc6 {[%clk 00:04:20]} {[%emt 00:00:21]}
29. Nxd4 {[%clk 00:06:24]} {[%emt 00:02:01]} exd4 {[%clk 00:04:28]} {[%emt
00:00:01]} 30. Qe7 {[%clk 00:05:27]} {[%emt 00:01:07]} Bf6 {[%clk 00:03:35]}
{[%emt 00:01:04]} 31. Qa3 {[%clk 00:05:22]} {[%emt 00:00:14]} Qd5 {[%clk
00:03:26]} {[%emt 00:00:19]} 32. Re4 {[%clk 00:04:55]} {[%emt 00:00:36]} Re8
{[%clk 00:02:47]} {[%emt 00:00:50]} 33. Qd3 {[%clk 00:04:28]} {[%emt 00:00:37]}
Rxe4 {[%clk 00:02:39]} {[%emt 00:00:18]} 34. fxe4 {[%clk 00:04:15]} {[%emt
00:00:22]} Qh5 {[%clk 00:02:47]} {[%emt 00:00:02]} 35. Bf4 {[%clk 00:03:14]}
{[%emt 00:01:10]} Qc5 {[%clk 00:02:55]} {[%emt 00:00:03]} 36. e5 {[%clk
00:02:43]} {[%emt 00:00:41]} Bxe5 {[%clk 00:03:03]} {[%emt 00:00:02]} 37. Bxe5
{[%clk 00:02:51]} {[%emt 00:00:01]} Qxe5 {[%clk 00:03:12]} 38. Qxd4 {[%clk
00:02:55]} {[%emt 00:00:06]} Qg5+ {[%clk 00:02:44]} {[%emt 00:00:38]} 39. Qg4
{[%clk 00:03:03]} {[%emt 00:00:02]} Qxg4+ {[%clk 00:02:39]} {[%emt 00:00:15]}
40. hxg4 {[%clk 00:03:12]} {[%emt 00:00:01]} Rc4 {[%clk 00:02:48]} 41. f3
{[%clk 00:02:56]} {[%emt 00:00:26]} Rxa4 {[%clk 00:02:57]} {[%emt 00:00:01]} 42.
Rd8+ {[%clk 00:03:00]} {[%emt 00:00:06]} Kg7 {[%clk 00:03:06]} {[%emt
00:00:01]} 43. Ra8 {[%clk 00:03:05]} {[%emt 00:00:04]} Ra2 {[%clk 00:03:07]}
{[%emt 00:00:09]} 44. b4 {[%clk 00:02:56]} {[%emt 00:00:19]} a4 {[%clk
00:03:17]} 45. b5 {[%clk 00:03:01]} {[%emt 00:00:05]} a3 {[%clk 00:03:26]} 46.
b6 {[%clk 00:03:08]} {[%emt 00:00:03]} Rb2 {[%clk 00:03:03]} {[%emt 00:00:33]}
47. Rxa3 {[%clk 00:03:12]} {[%emt 00:00:06]} Rxb6 {[%clk 00:03:11]} {[%emt
00:00:02]} 48. Kg2 {[%clk 00:03:20]} Kf6 {[%clk 00:03:07]} {[%emt 00:00:13]} 49.
Ra5 {[%clk 00:03:17]} {[%emt 00:00:15]} Re6 {[%clk 00:03:05]} {[%emt 00:00:12]}
50. Kg3 {[%clk 00:03:20]} {[%emt 00:00:07]} h6 {[%clk 00:03:05]} {[%emt
00:00:10]} 51. Rb5 {[%clk 00:03:24]} {[%emt 00:00:06]} Re5 {[%clk 00:02:48]}
{[%emt 00:00:27]} 52. Rb6+ {[%clk 00:03:29]} {[%emt 00:00:05]} Kg7 {[%clk
00:02:57]} {[%emt 00:00:01]} 53. Ra6 {[%clk 00:03:26]} {[%emt 00:00:13]} Rb5
{[%clk 00:03:02]} {[%emt 00:00:04]} 54. Rc6 {[%clk 00:03:17]} {[%emt 00:00:19]}
Rg5 {[%clk 00:02:57]} {[%emt 00:00:15]} 55. Ra6 {[%clk 00:03:18]} {[%emt
00:00:09]} h5 {[%clk 00:02:59]} {[%emt 00:00:08]} 56. Kh4 {[%clk 00:03:03]}
{[%emt 00:00:25]} Rb5 {[%clk 00:03:05]} {[%emt 00:00:05]} 57. gxh5 {[%clk
00:03:04]} {[%emt 00:00:09]} Rxh5+ {[%clk 00:03:13]} {[%emt 00:00:02]} 58. Kg4
{[%clk 00:03:11]} {[%emt 00:00:03]} Rb5 {[%clk 00:03:18]} {[%emt 00:00:05]} 59.
Ra7 {[%clk 00:03:04]} {[%emt 00:00:17]} Re5 {[%clk 00:03:23]} {[%emt 00:00:06]}
60. Ra6 {[%clk 00:03:06]} {[%emt 00:00:07]} Re6 {[%clk 00:03:32]} {[%emt
00:00:02]} 61. Ra5 {[%clk 00:02:59]} {[%emt 00:00:17]} Kf6 {[%clk 00:03:39]}
{[%emt 00:00:02]} 62. Rb5 {[%clk 00:03:04]} {[%emt 00:00:05]} Ra6 {[%clk
00:03:48]} {[%emt 00:00:01]} 63. Rc5 {[%clk 00:03:07]} {[%emt 00:00:07]} Ra4+
{[%clk 00:03:57]} 64. f4 {[%clk 00:03:09]} {[%emt 00:00:08]} Ra3 {[%clk
00:03:38]} {[%emt 00:00:29]} 65. Rb5 {[%clk 00:03:00]} {[%emt 00:00:19]} Kg7
{[%clk 00:03:44]} {[%emt 00:00:05]} 66. Rb7 {[%clk 00:03:02]} {[%emt 00:00:07]}
Ra5 {[%clk 00:03:46]} {[%emt 00:00:08]} 67. Rc7 {[%clk 00:02:53]} {[%emt
00:00:20]} Ra1 {[%clk 00:03:42]} {[%emt 00:00:13]} 68. Rb7 {[%clk 00:02:52]}
{[%emt 00:00:11]} Rg1+ {[%clk 00:03:49]} {[%emt 00:00:02]} 69. Kf3 {[%clk
00:03:00]} {[%emt 00:00:03]} g5 {[%clk 00:03:40]} {[%emt 00:00:19]} 70. fxg5
{[%clk 00:03:04]} {[%emt 00:00:06]} Rxg5 {[%clk 00:03:49]} {[%emt 00:00:02]} 71.
Kf4 {[%clk 00:03:07]} {[%emt 00:00:06]} Ra5 {[%clk 00:03:58]} {[%emt 00:00:02]}
72. Rb6 {[%clk 00:03:13]} {[%emt 00:00:04]} f6 {[%clk 00:04:06]} {[%emt
00:00:02]} 73. Rb7+ {[%clk 00:03:14]} {[%emt 00:00:09]} Kg6 {[%clk 00:04:15]}
{[%emt 00:00:01]} 74. Rb4 {[%clk 00:03:22]} {[%emt 00:00:02]} Rh5 {[%clk
00:04:17]} {[%emt 00:00:08]} 75. Rb6 {[%clk 00:03:23]} {[%emt 00:00:09]} Rh4+
{[%clk 00:04:24]} {[%emt 00:00:04]} 76. Kg3 {[%clk 00:03:29]} {[%emt 00:00:04]}
Ra4 {[%clk 00:04:32]} {[%emt 00:00:01]} 77. Rb5 {[%clk 00:03:36]} {[%emt
00:00:03]} f5 {[%clk 00:04:42]} {[%emt 00:00:01]} 78. Rc5 {[%clk 00:03:40]}
{[%emt 00:00:05]} Kg5 {[%clk 00:04:51]} 79. Rc3 {[%clk 00:03:48]} {[%emt
00:00:03]} Rh4 {[%clk 00:04:49]} {[%emt 00:00:12]} 80. Rc5 {[%clk 00:03:52]}
{[%emt 00:00:05]} Re4 {[%clk 00:04:27]} {[%emt 00:00:30]} 81. Rc3 {[%clk
00:03:50]} {[%emt 00:00:13]} Ra4 {[%clk 00:04:15]} {[%emt 00:00:23]} 82. Rb3
{[%clk 00:03:53]} {[%emt 00:00:08]} Ra1 {[%clk 00:04:06]} {[%emt 00:00:18]} 83.
Rb4 {[%clk 00:03:54]} {[%emt 00:00:09]} Ra3+ {[%clk 00:04:14]} {[%emt
00:00:03]} 84. Kf2 {[%clk 00:03:58]} {[%emt 00:00:05]} f4 {[%clk 00:04:23]}
{[%emt 00:00:01]} 85. Rb8 {[%clk 00:03:48]} {[%emt 00:00:20]} Ra2+ {[%clk
00:03:14]} {[%emt 00:01:19]} 86. Kf3 {[%clk 00:03:45]} {[%emt 00:00:13]} Ra3+
{[%clk 00:03:22]} {[%emt 00:00:02]} 87. Kf2 {[%clk 00:03:53]} {[%emt 00:00:01]}
Ra5 {[%clk 00:01:05]} {[%emt 00:02:28]} 88. Kf3 {[%clk 00:03:55]} {[%emt
00:00:08]} Ra3+ {[%clk 00:00:50]} {[%emt 00:00:25]} 89. Kf2 {[%clk 00:04:03]}
{[%emt 00:00:02]} Rh3 {[%clk 00:00:36]} {[%emt 00:00:24]} 90. Kg2 {[%clk
00:03:56]} {[%emt 00:00:17]} Rg3+ {[%clk 00:00:38]} {[%emt 00:00:08]} 91. Kf2
{[%clk 00:04:04]} {[%emt 00:00:02]} Kf5 {[%clk 00:00:40]} {[%emt 00:00:08]} 92.
Rf8+ {[%clk 00:04:08]} {[%emt 00:00:06]} Ke4 {[%clk 00:00:43]} {[%emt
00:00:07]} 93. Re8+ {[%clk 00:04:15]} {[%emt 00:00:03]} Kf5 {[%emt 00:00:17]}
1/2-1/2

[Event "Vastgota Open 2022"]
[Site "Skara stadshotell, Jarnvagsgatan 5, Skara, Sweden"]
[Date "2022.10.30"]
[Round "7.7"]
[White "Lind, Jan-Olov"]
[Black "Kleimark, Anders"]
[Result "0-1"]
[TimeControl "30 minutes + 10 seconds per move from move one."]
[WhiteFideId "1701193"]
[BlackFideId "1709968"]
[WhiteElo "2123"]
[BlackElo "2048"]

1. e4 {[%clk 00:30:18]} {[%emt 00:00:01]} c5 {[%clk 00:30:11]} {[%emt
00:00:09]} 2. Nf3 {[%clk 00:30:25]} {[%emt 00:00:03]} d6 {[%clk 00:30:14]}
{[%emt 00:00:07]} 3. d4 {[%clk 00:29:40]} {[%emt 00:00:56]} cxd4 {[%clk
00:30:22]} {[%emt 00:00:02]} 4. Nxd4 {[%clk 00:29:49]} {[%emt 00:00:01]} Nf6
{[%clk 00:30:25]} {[%emt 00:00:05]} 5. Nc3 {[%clk 00:29:57]} {[%emt 00:00:03]}
Nc6 {[%clk 00:30:32]} {[%emt 00:00:03]} 6. Bc4 {[%clk 00:30:01]} {[%emt
00:00:06]} Qb6 {[%clk 00:30:37]} {[%emt 00:00:05]} 7. Nxc6 {[%clk 00:29:57]}
{[%emt 00:00:14]} bxc6 {[%clk 00:30:38]} {[%emt 00:00:09]} 8. O-O {[%clk
00:30:03]} {[%emt 00:00:04]} g6 {[%clk 00:27:04]} {[%emt 00:03:44]} 9. e5
{[%clk 00:30:01]} {[%emt 00:00:12]} dxe5 {[%clk 00:26:54]} {[%emt 00:00:20]} 10.
Qe2 {[%clk 00:30:09]} {[%emt 00:00:02]} Bg7 {[%clk 00:25:06]} {[%emt 00:01:58]}
11. Qxe5 {[%clk 00:29:39]} {[%emt 00:00:40]} O-O {[%clk 00:21:37]} {[%emt
00:03:39]} 12. Qxe7 {[%clk 00:25:11]} {[%emt 00:04:38]} Bf5 {[%clk 00:21:36]}
{[%emt 00:00:12]} 13. Bb3 {[%clk 00:24:07]} {[%emt 00:01:14]} Rae8 {[%clk
00:20:23]} {[%emt 00:01:23]} 14. Qd6 {[%clk 00:17:43]} {[%emt 00:06:33]} Ng4
{[%clk 00:19:24]} {[%emt 00:01:09]} 15. Bf4 {[%clk 00:14:51]} {[%emt 00:03:02]}
Bd4 {[%clk 00:15:48]} {[%emt 00:03:46]} 16. Bg3 {[%clk 00:14:09]} {[%emt
00:00:51]} Rd8 {[%clk 00:13:17]} {[%emt 00:02:42]} 17. Qc7 {[%clk 00:10:54]}
{[%emt 00:03:25]} Qc5 {[%clk 00:05:45]} {[%emt 00:07:43]} 18. Na4 {[%clk
00:04:41]} {[%emt 00:06:24]} Qb5 {[%clk 00:05:42]} {[%emt 00:00:12]} 19. c4
{[%clk 00:04:33]} {[%emt 00:00:18]} Qb4 {[%clk 00:05:32]} {[%emt 00:00:20]} 20.
h3 {[%clk 00:02:04]} {[%emt 00:02:38]} Rd7 {[%clk 00:03:28]} {[%emt 00:02:15]}
21. Qxc6 {[%clk 00:02:03]} {[%emt 00:00:10]} Nf6 {[%clk 00:03:35]} {[%emt
00:00:02]} 22. Qb5 {[%clk 00:01:15]} {[%emt 00:00:59]} Qd2 {[%clk 00:03:15]}
{[%emt 00:00:31]} 23. Rad1 {[%clk 00:01:15]} {[%emt 00:00:09]} Qg5 {[%clk
00:03:24]} {[%emt 00:00:03]} 24. Rxd4 {[%clk 00:00:49]} {[%emt 00:00:35]} Rxd4
{[%clk 00:03:30]} {[%emt 00:00:04]} 25. c5 {[%clk 00:00:39]} {[%emt 00:00:20]}
Bd3 {[%clk 00:03:30]} {[%emt 00:00:10]} 26. Qc6 {[%clk 00:00:38]} {[%emt
00:00:10]} Bxf1 {[%clk 00:03:32]} {[%emt 00:00:09]} 27. Kxf1 {[%clk 00:00:19]}
{[%emt 00:00:29]} Qc1+ {[%clk 00:02:35]} {[%emt 00:01:08]} 28. Ke2 {[%clk
00:00:27]} Ne4 {[%clk 00:01:55]} {[%emt 00:00:50]} 29. Kf3 {[%clk 00:30:10]}
0-1

[Event "Vastgota Open 2022"]
[Site "Skara stadshotell, Jarnvagsgatan 5, Skara, Sweden"]
[Date "2022.10.30"]
[Round "7.8"]
[White "Bengtsson, Siv"]
[Black "Bjorklund, Thomas"]
[Result "1/2-1/2"]
[TimeControl "30 minutes + 10 seconds per move from move one."]
[WhiteFideId "1701673"]
[BlackFideId "1724576"]
[WhiteElo "1952"]
[BlackElo "2122"]

1. e4 {[%clk 00:30:08]} {[%emt 00:00:11]} e5 {[%clk 00:30:16]} {[%emt
00:00:05]} 2. Nf3 {[%clk 00:30:14]} {[%emt 00:00:04]} Nc6 {[%clk 00:30:22]}
{[%emt 00:00:04]} 3. Bb5 {[%clk 00:30:19]} {[%emt 00:00:04]} d6 {[%clk
00:30:23]} {[%emt 00:00:10]} 4. O-O {[%clk 00:29:52]} {[%emt 00:00:37]} Nf6
{[%clk 00:30:22]} {[%emt 00:00:11]} 5. d3 {[%clk 00:29:49]} {[%emt 00:00:13]}
Be7 {[%clk 00:30:14]} {[%emt 00:00:18]} 6. c3 {[%clk 00:29:24]} {[%emt
00:00:35]} O-O {[%clk 00:30:11]} {[%emt 00:00:13]} 7. Nbd2 {[%clk 00:29:19]}
{[%emt 00:00:14]} a6 {[%clk 00:30:03]} {[%emt 00:00:19]} 8. Ba4 {[%clk
00:29:24]} {[%emt 00:00:05]} Bg4 {[%clk 00:30:01]} {[%emt 00:00:12]} 9. Re1
{[%clk 00:28:54]} {[%emt 00:00:41]} Rb8 {[%clk 00:29:27]} {[%emt 00:00:43]} 10.
Nf1 {[%clk 00:28:04]} {[%emt 00:00:59]} b5 {[%clk 00:29:17]} {[%emt 00:00:20]}
11. Bc2 {[%clk 00:26:53]} {[%emt 00:01:21]} Na5 {[%clk 00:25:05]} {[%emt
00:04:23]} 12. Ne3 {[%clk 00:24:20]} {[%emt 00:02:42]} Bh5 {[%clk 00:24:51]}
{[%emt 00:00:25]} 13. Nf5 {[%clk 00:24:03]} {[%emt 00:00:26]} c5 {[%clk
00:24:11]} {[%emt 00:00:50]} 14. Qd2 {[%clk 00:18:51]} {[%emt 00:05:22]} Bg6
{[%clk 00:20:51]} {[%emt 00:03:31]} 15. Nxe7+ {[%clk 00:18:33]} {[%emt
00:00:27]} Qxe7 {[%clk 00:20:53]} {[%emt 00:00:09]} 16. Nh4 {[%clk 00:17:24]}
{[%emt 00:01:19]} Nc6 {[%clk 00:19:55]} {[%emt 00:01:08]} 17. Nxg6 {[%clk
00:16:33]} {[%emt 00:01:01]} hxg6 {[%clk 00:19:56]} {[%emt 00:00:09]} 18. Qe2
{[%clk 00:16:06]} {[%emt 00:00:36]} Rfe8 {[%clk 00:19:23]} {[%emt 00:00:44]} 19.
Bg5 {[%clk 00:15:43]} {[%emt 00:00:32]} Qe6 {[%clk 00:19:12]} {[%emt 00:00:20]}
20. Bb3 {[%clk 00:14:01]} {[%emt 00:01:53]} Qg4 {[%clk 00:18:04]} {[%emt
00:01:18]} 21. Qxg4 {[%clk 00:13:06]} {[%emt 00:01:06]} Nxg4 {[%clk 00:14:40]}
{[%emt 00:03:34]} 22. Re2 {[%clk 00:13:14]} {[%emt 00:00:02]} Nf6 {[%clk
00:14:21]} {[%emt 00:00:29]} 23. f4 {[%clk 00:09:34]} {[%emt 00:03:50]} Nh7
{[%clk 00:13:58]} {[%emt 00:00:33]} 24. Rf1 {[%clk 00:08:01]} {[%emt 00:01:42]}
Nxg5 {[%clk 00:09:49]} {[%emt 00:04:20]} 25. fxg5 {[%clk 00:08:08]} {[%emt
00:00:02]} Re7 {[%clk 00:09:50]} {[%emt 00:00:09]} 26. Bd5 {[%clk 00:07:49]}
{[%emt 00:00:29]} Nd8 {[%clk 00:09:55]} {[%emt 00:00:06]} 27. Ref2 {[%clk
00:07:34]} {[%emt 00:00:25]} Kf8 {[%clk 00:07:30]} {[%emt 00:02:35]} 28. h4
{[%clk 00:07:25]} {[%emt 00:00:19]} Ke8 {[%clk 00:07:36]} {[%emt 00:00:05]} 29.
g4 {[%clk 00:06:59]} {[%emt 00:00:35]} Rc8 {[%clk 00:07:21]} {[%emt 00:00:25]}
30. Kg2 {[%clk 00:06:50]} {[%emt 00:00:18]} Rcc7 {[%clk 00:07:28]} {[%emt
00:00:04]} 31. Kg3 {[%clk 00:06:41]} {[%emt 00:00:18]} Ne6 {[%clk 00:07:28]}
{[%emt 00:00:10]} 32. Bxe6 {[%clk 00:06:48]} {[%emt 00:00:05]} Rxe6 {[%clk
00:07:36]} {[%emt 00:00:02]} 33. h5 {[%clk 00:05:53]} {[%emt 00:01:03]} gxh5
{[%clk 00:07:30]} {[%emt 00:00:16]} 34. gxh5 {[%clk 00:06:02]} {[%emt
00:00:01]} c4 {[%clk 00:07:04]} {[%emt 00:00:37]} 35. dxc4 {[%clk 00:06:08]}
{[%emt 00:00:04]} bxc4 {[%clk 00:07:04]} {[%emt 00:00:10]} 36. Rh1 {[%clk
00:05:59]} {[%emt 00:00:18]} Kf8 {[%clk 00:07:00]} {[%emt 00:00:15]} 37. g6
{[%clk 00:04:51]} {[%emt 00:01:18]} Kg8 {[%clk 00:07:04]} {[%emt 00:00:06]} 38.
gxf7+ {[%clk 00:03:44]} {[%emt 00:01:17]} Rxf7 {[%clk 00:07:13]} 39. Rxf7
{[%clk 00:03:50]} {[%emt 00:00:05]} Kxf7 {[%clk 00:07:22]} 40. Rd1 {[%clk
00:03:43]} {[%emt 00:00:16]} Rf6 {[%clk 00:06:45]} {[%emt 00:00:47]} 41. Rd5
{[%clk 00:03:41]} {[%emt 00:00:11]} Ke6 {[%clk 00:06:29]} {[%emt 00:00:28]} 42.
Ra5 {[%clk 00:03:38]} {[%emt 00:00:13]} Rf4 {[%clk 00:06:26]} {[%emt 00:00:12]}
43. Rxa6 {[%clk 00:03:47]} {[%emt 00:00:02]} Rxe4 {[%clk 00:06:33]} {[%emt
00:00:03]} 44. a4 {[%clk 00:03:24]} {[%emt 00:00:33]} Re2 {[%clk 00:06:28]}
{[%emt 00:00:14]} 45. Rb6 {[%clk 00:03:32]} {[%emt 00:00:02]} Re1 {[%clk
00:06:23]} {[%emt 00:00:16]} 46. a5 {[%clk 00:03:40]} {[%emt 00:00:02]} Ra1
{[%clk 00:06:26]} {[%emt 00:00:06]} 47. a6 {[%clk 00:03:49]} {[%emt 00:00:02]}
Kd5 {[%clk 00:05:19]} {[%emt 00:01:17]} 48. Kf3 {[%clk 00:03:30]} {[%emt
00:00:28]} Kc5 {[%clk 00:04:39]} {[%emt 00:00:51]} 49. Rb7 {[%clk 00:03:39]}
{[%emt 00:00:01]} Rxa6 {[%clk 00:04:27]} {[%emt 00:00:22]} 50. Rxg7 {[%clk
00:03:46]} {[%emt 00:00:02]} d5 {[%clk 00:04:26]} {[%emt 00:00:12]} 51. Rc7+
{[%clk 00:02:29]} {[%emt 00:01:26]} Kd6 {[%clk 00:04:19]} {[%emt 00:00:18]} 52.
Rg7 {[%clk 00:02:37]} {[%emt 00:00:01]} Kc5 {[%clk 00:03:53]} {[%emt 00:00:36]}
53. Rc7+ {[%clk 00:02:45]} {[%emt 00:00:02]} Kd6 {[%clk 00:04:02]} {[%emt
00:00:02]} 54. Rg7 {[%emt 00:00:09]} Ra2 55. Rg2 d4 {[%emt 00:00:09]} 56. cxd4
exd4 57. h6 {[%emt 00:00:02]} c3 58. Ke4 {[%clk 00:01:54]} {[%emt 00:00:04]}
1/2-1/2